[Event "*** Titled Tuesday Blitz"]
[Site "Chess.com"]
[Date "2019.06.04"]
[Round "8"]
[White "Anaiy"]
[Black "tan275"]
[Result "0-1"]
[WhiteElo "1980"]
[BlackElo "2197"]
[TimeControl "180+2"]
[EndTime "14:58:13 PDT"]
[Termination "tan275 won on time"]

1. d4 {[%clk 0:03:01.9]} 1... Nf6 {[%clk 0:03:00.1]} 2. c4 {[%clk 0:03:02.5]}
2... e6 {[%clk 0:03:01.2]} 3. Nc3 {[%clk 0:03:03.7]} 3... Bb4 {[%clk 0:03:00.7]}
4. e3 {[%clk 0:03:04.5]} 4... d5 {[%clk 0:03:00.9]} 5. a3 {[%clk 0:02:55.2]}
5... Bxc3+ {[%clk 0:02:59.9]} 6. bxc3 {[%clk 0:02:57.1]} 6... O-O {[%clk
0:03:00.7]} 7. Nf3 {[%clk 0:02:57.6]} 7... dxc4 {[%clk 0:02:59.9]} 8. Bxc4
{[%clk 0:02:58.3]} 8... c5 {[%clk 0:03:00.7]} 9. O-O {[%clk 0:02:58.9]} 9... Nc6
{[%clk 0:03:01.1]} 10. a4 {[%clk 0:02:57.9]} 10... Re8 {[%clk 0:02:45.9]} 11.
dxc5 {[%clk 0:02:33.3]} 11... Qa5 {[%clk 0:02:43]} 12. Bb5 {[%clk 0:02:26.6]}
12... Bd7 {[%clk 0:02:37.9]} 13. Bb2 {[%clk 0:02:17.9]} 13... Rad8 {[%clk
0:02:37.1]} 14. Qc2 {[%clk 0:02:15.1]} 14... a6 {[%clk 0:02:37.6]} 15. Bxc6
{[%clk 0:02:15.2]} 15... Bxc6 {[%clk 0:02:38.7]} 16. Ba3 {[%clk 0:02:13.8]}
16... Ne4 {[%clk 0:02:30.1]} 17. Nd4 {[%clk 0:02:08.1]} 17... Qxc3 {[%clk
0:02:12.6]} 18. Qxc3 {[%clk 0:02:02.5]} 18... Nxc3 {[%clk 0:02:13.7]} 19. Nxc6
{[%clk 0:01:58.9]} 19... bxc6 {[%clk 0:02:14.8]} 20. Bb4 {[%clk 0:01:47.3]}
20... Nd5 {[%clk 0:02:12.9]} 21. Ba5 {[%clk 0:01:46.5]} 21... Rb8 {[%clk
0:02:11.3]} 22. Rab1 {[%clk 0:01:45.8]} 22... Kf8 {[%clk 0:02:05.2]} 23. h3
{[%clk 0:01:37.7]} 23... Ke7 {[%clk 0:02:02.8]} 24. Bb6 {[%clk 0:01:34.6]} 24...
Nxb6 {[%clk 0:01:48.2]} 25. cxb6 {[%clk 0:01:35]} 25... a5 {[%clk 0:01:44]} 26.
Rfc1 {[%clk 0:01:35.6]} 26... Kd6 {[%clk 0:01:40.7]} 27. Rd1+ {[%clk 0:01:30.4]}
27... Ke7 {[%clk 0:01:38.1]} 28. Rdc1 {[%clk 0:01:09.4]} 28... Kd6 {[%clk
0:01:38.1]} 29. Rd1+ {[%clk 0:01:09.8]} 29... Ke7 {[%clk 0:01:38.1]} 30. Rd4
{[%clk 0:01:10.2]} 30... Rb7 {[%clk 0:01:36.5]} 31. Rc4 {[%clk 0:01:09.8]} 31...
Kd6 {[%clk 0:01:34.2]} 32. Rd1+ {[%clk 0:01:09.4]} 32... Ke7 {[%clk 0:01:32.5]}
33. Rxc6 {[%clk 0:01:10.1]} 33... Reb8 {[%clk 0:01:32]} 34. Rb1 {[%clk
0:01:02.1]} 34... Kd7 {[%clk 0:01:31.5]} 35. Rc5 {[%clk 0:01:02.8]} 35... Rxb6
{[%clk 0:01:32.1]} 36. Rxb6 {[%clk 0:01:03.4]} 36... Rxb6 {[%clk 0:01:33.4]} 37.
Rxa5 {[%clk 0:01:05]} 37... Ke7 {[%clk 0:01:23.6]} 38. Ra7+ {[%clk 0:01:05.3]}
38... Kf6 {[%clk 0:01:24.6]} 39. Kf1 {[%clk 0:01:06.2]} 39... Rb2 {[%clk
0:01:25.3]} 40. a5 {[%clk 0:01:05.2]} 40... Ra2 {[%clk 0:01:26]} 41. g3 {[%clk
0:01:01.5]} 41... e5 {[%clk 0:01:25.9]} 42. a6 {[%clk 0:00:55.7]} 42... e4
{[%clk 0:01:23.8]} 43. Ra8 {[%clk 0:00:56.3]} 43... Ke7 {[%clk 0:01:17.4]} 44.
a7 {[%clk 0:00:53.9]} 44... g6 {[%clk 0:01:15]} 45. Ke1 {[%clk 0:00:50.1]} 45...
h5 {[%clk 0:01:14.3]} 46. Kd1 {[%clk 0:00:47.8]} 46... Kf6 {[%clk 0:01:10.9]}
47. Kc1 {[%clk 0:00:46]} 47... Kg7 {[%clk 0:01:08.4]} 48. Kb1 {[%clk 0:00:46.8]}
48... Ra6 {[%clk 0:01:08.8]} 49. Kb2 {[%clk 0:00:47.9]} 49... Ra4 {[%clk
0:01:03.1]} 50. Kb3 {[%clk 0:00:48.5]} 50... Ra1 {[%clk 0:01:03.4]} 51. Kc4
{[%clk 0:00:46.6]} 51... Ra4+ {[%clk 0:01:02.9]} 52. Kd5 {[%clk 0:00:45]} 52...
Ra5+ {[%clk 0:01:02]} 53. Kxe4 {[%clk 0:00:44.9]} 53... Kf6 {[%clk 0:00:59.5]}
54. Kd4 {[%clk 0:00:45.2]} 54... Ra1 {[%clk 0:01:00]} 55. e4 {[%clk 0:00:39.6]}
55... Rd1+ {[%clk 0:00:59.5]} 56. Ke3 {[%clk 0:00:39.4]} 56... Re1+ {[%clk
0:00:59.6]} 57. Kf3 {[%clk 0:00:36.4]} 57... Ra1 {[%clk 0:01:00]} 58. h4 {[%clk
0:00:37.8]} 58... Ra3+ {[%clk 0:00:59]} 59. Kf4 {[%clk 0:00:38.4]} 59... Ra4
{[%clk 0:00:54.7]} 60. f3 {[%clk 0:00:38.6]} 60... Kg7 {[%clk 0:00:51]} 61. Kg5
{[%clk 0:00:35]} 61... Ra5+ {[%clk 0:00:48.1]} 62. Kf4 {[%clk 0:00:35.1]} 62...
Kf6 {[%clk 0:00:39.5]} 63. e5+ {[%clk 0:00:29.6]} 63... Kg7 {[%clk 0:00:39.5]}
64. Ke4 {[%clk 0:00:25.9]} 64... Ra4+ {[%clk 0:00:37.4]} 65. Ke3 {[%clk
0:00:25.7]} 65... Kh7 {[%clk 0:00:34]} 66. Kd3 {[%clk 0:00:24.5]} 66... Kg7
{[%clk 0:00:34.1]} 67. Kc3 {[%clk 0:00:25.8]} 67... Ra1 {[%clk 0:00:33.5]} 68.
Kd4 {[%clk 0:00:23.8]} 68... Rd1+ {[%clk 0:00:33.9]} 69. Kc5 {[%clk 0:00:24.8]}
69... Ra1 {[%clk 0:00:33.7]} 70. Kd6 {[%clk 0:00:24.6]} 70... Ra6+ {[%clk
0:00:32.9]} 71. Ke7 {[%clk 0:00:24.7]} 71... Re6+ {[%clk 0:00:31.6]} 72. Kd7
{[%clk 0:00:24.3]} 72... Ra6 {[%clk 0:00:32.5]} 73. f4 {[%clk 0:00:24.9]} 73...
Ra3 {[%clk 0:00:29.7]} 74. Ke7 {[%clk 0:00:21.6]} 74... Ra6 {[%clk 0:00:30.1]}
75. Kd7 {[%clk 0:00:21]} 75... Ra3 {[%clk 0:00:30.6]} 76. Kc7 {[%clk 0:00:22]}
76... Rc3+ {[%clk 0:00:30.8]} 77. Kb7 {[%clk 0:00:20.8]} 77... Rb3+ {[%clk
0:00:32]} 78. Kc6 {[%clk 0:00:21.5]} 78... Rc3+ {[%clk 0:00:33]} 79. Kb5 {[%clk
0:00:22]} 79... Ra3 {[%clk 0:00:33.5]} 80. Kb6 {[%clk 0:00:21.7]} 80... Rb3+
{[%clk 0:00:34.8]} 81. Ka5 {[%clk 0:00:22.5]} 81... Ra3+ {[%clk 0:00:35.7]} 82.
Kb4 {[%clk 0:00:23.5]} 82... Ra1 {[%clk 0:00:36.4]} 83. Kc5 {[%clk 0:00:22.8]}
83... Rc1+ {[%clk 0:00:36.5]} 84. Kd4 {[%clk 0:00:24.2]} 84... Ra1 {[%clk
0:00:37.2]} 85. Ke3 {[%clk 0:00:24.9]} 85... Ra3+ {[%clk 0:00:38]} 86. Ke4
{[%clk 0:00:25.2]} 86... Ra4+ {[%clk 0:00:38.7]} 87. Kd3 {[%clk 0:00:25.5]}
87... Ra3+ {[%clk 0:00:39.2]} 88. Kc4 {[%clk 0:00:26.2]} 88... Ra1 {[%clk
0:00:39.6]} 89. Kb3 {[%clk 0:00:26.9]} 89... Ra6 {[%clk 0:00:38.1]} 90. Kb2
{[%clk 0:00:23.3]} 90... Ra5 {[%clk 0:00:37]} 91. Kb3 {[%clk 0:00:20.2]} 91...
Ra1 {[%clk 0:00:37.7]} 92. f5 {[%clk 0:00:19.4]} 92... gxf5 {[%clk 0:00:37.4]}
93. Kc4 {[%clk 0:00:19.1]} 93... Ra4+ {[%clk 0:00:36.8]} 94. Kd3 {[%clk
0:00:17.8]} 94... Ra5 {[%clk 0:00:33.7]} 95. Kd4 {[%clk 0:00:16.9]} 95... Ra1
{[%clk 0:00:33]} 96. Ke3 {[%clk 0:00:18.2]} 96... Re1+ {[%clk 0:00:32.4]} 97.
Kf4 {[%clk 0:00:19.6]} 97... Ra1 {[%clk 0:00:22.2]} 98. Kxf5 {[%clk 0:00:19.8]}
98... Ra5 {[%clk 0:00:21.5]} 99. Kf4 {[%clk 0:00:20.6]} 99... Kh7 {[%clk
0:00:20.1]} 100. Kg5 {[%clk 0:00:18.9]} 100... Rxe5+ {[%clk 0:00:18.5]} 101. Kf6
{[%clk 0:00:20.1]} 101... Ra5 {[%clk 0:00:18.4]} 102. Kxf7 {[%clk 0:00:21.6]}
102... Ra6 {[%clk 0:00:17.6]} 103. Ke7 {[%clk 0:00:19.9]} 103... Kg7 {[%clk
0:00:18.6]} 104. Kd7 {[%clk 0:00:21]} 104... Ra5 {[%clk 0:00:19.2]} 105. Kd6
{[%clk 0:00:19.6]} 105... Ra6+ {[%clk 0:00:20.2]} 106. Ke5 {[%clk 0:00:20.5]}
106... Ra5+ {[%clk 0:00:21.4]} 107. Kf4 {[%clk 0:00:21.7]} 107... Ra4+ {[%clk
0:00:22.4]} 108. Kg5 {[%clk 0:00:19.5]} 108... Ra5+ {[%clk 0:00:23.6]} 109. Kf4
{[%clk 0:00:20.7]} 109... Ra4+ {[%clk 0:00:24.9]} 110. Kf3 {[%clk 0:00:21.7]}
110... Ra3+ {[%clk 0:00:25.9]} 111. Ke4 {[%clk 0:00:22.2]} 111... Ra4+ {[%clk
0:00:26]} 112. Kd5 {[%clk 0:00:23.1]} 112... Ra5+ {[%clk 0:00:26.6]} 113. Kc4
{[%clk 0:00:23.8]} 113... Ra1 {[%clk 0:00:27.4]} 114. Kb4 {[%clk 0:00:21.7]}
114... Rb1+ {[%clk 0:00:28.1]} 115. Ka3 {[%clk 0:00:22.3]} 115... Ra1+ {[%clk
0:00:29]} 116. Kb3 {[%clk 0:00:23.4]} 116... Ra6 {[%clk 0:00:29.8]} 117. Kb4
{[%clk 0:00:19.2]} 117... Ra1 {[%clk 0:00:30.6]} 118. Kb5 {[%clk 0:00:19.8]}
118... Rb1+ {[%clk 0:00:31.9]} 119. Kc6 {[%clk 0:00:20.3]} 119... Rc1+ {[%clk
0:00:33.1]} 120. Kd7 {[%clk 0:00:20.3]} 120... Rd1+ {[%clk 0:00:34.3]} 121. Ke6
{[%clk 0:00:21]} 121... Ra1 {[%clk 0:00:35.1]} 122. Re8 {[%clk 0:00:16.3]}
122... Ra6+ {[%clk 0:00:31.6]} 123. Kf5 {[%clk 0:00:11.5]} 123... Rxa7 {[%clk
0:00:32.1]} 124. Kg5 {[%clk 0:00:11.9]} 124... Ra5+ {[%clk 0:00:33.1]} 125. Kf4
{[%clk 0:00:12.7]} 125... Ra4+ {[%clk 0:00:34.1]} 126. Re4 {[%clk 0:00:12.7]}
126... Ra6 {[%clk 0:00:29.5]} 127. Re5 {[%clk 0:00:12.7]} 127... Kg6 {[%clk
0:00:30.2]} 128. Rd5 {[%clk 0:00:11.9]} 128... Ra4+ {[%clk 0:00:29.6]} 129. Kf3
{[%clk 0:00:12.8]} 129... Rb4 {[%clk 0:00:29.6]} 130. Re5 {[%clk 0:00:12.9]}
130... Kh6 {[%clk 0:00:29.7]} 131. Re6+ {[%clk 0:00:13.5]} 131... Kg7 {[%clk
0:00:29.2]} 132. Re4 {[%clk 0:00:15]} 132... Rb5 {[%clk 0:00:27.5]} 133. Re6
{[%clk 0:00:15.5]} 133... Rb4 {[%clk 0:00:26.5]} 134. Rd6 {[%clk 0:00:14.5]}
134... Ra4 {[%clk 0:00:25.5]} 135. Rb6 {[%clk 0:00:15.3]} 135... Rc4 {[%clk
0:00:25.3]} 136. Ke3 {[%clk 0:00:14.5]} 136... Ra4 {[%clk 0:00:25.3]} 137. Kf3
{[%clk 0:00:12.2]} 137... Rc4 {[%clk 0:00:25.8]} 138. Re6 {[%clk 0:00:12.2]}
138... Ra4 {[%clk 0:00:25.2]} 139. Re4 {[%clk 0:00:13.2]} 139... Ra3+ {[%clk
0:00:25]} 140. Kf4 {[%clk 0:00:13.8]} 140... Rb3 {[%clk 0:00:22.5]} 141. Re3
{[%clk 0:00:10.2]} 141... Rb4+ {[%clk 0:00:20.7]} 142. Kf5 {[%clk 0:00:11.2]}
142... Rb5+ {[%clk 0:00:21.4]} 143. Re5 {[%clk 0:00:10.4]} 143... Rb3 {[%clk
0:00:22.2]} 144. Re7+ {[%clk 0:00:06]} 144... Kh6 {[%clk 0:00:21.9]} 0-1

[Event "*** Titled Tuesday Blitz"]
[Site "Chess.com"]
[Date "2019.06.04"]
[Round "9"]
[White "volcanoexplorer"]
[Black "Joseph_Truelson"]
[Result "1-0"]
[WhiteElo "2609"]
[BlackElo "2281"]
[TimeControl "180+2"]
[EndTime "15:00:48 PDT"]
[Termination "volcanoexplorer won by resignation"]

1. e4 {[%clk 0:03:01.9]} 1... e5 {[%clk 0:03:00.4]} 2. Nf3 {[%clk 0:03:03]} 2...
Nc6 {[%clk 0:03:01.1]} 3. Bc4 {[%clk 0:03:04.3]} 3... Nf6 {[%clk 0:03:01.9]} 4.
d3 {[%clk 0:03:05.1]} 4... h6 {[%clk 0:03:02.9]} 5. O-O {[%clk 0:03:06]} 5... d6
{[%clk 0:03:03.3]} 6. c3 {[%clk 0:03:07.2]} 6... g5 {[%clk 0:03:04.4]} 7. Re1
{[%clk 0:03:06.5]} 7... Bg7 {[%clk 0:03:00.4]} 8. d4 {[%clk 0:03:07.3]} 8... O-O
{[%clk 0:03:01.9]} 9. dxe5 {[%clk 0:03:08.1]} 9... dxe5 {[%clk 0:03:03.8]} 10.
Qc2 {[%clk 0:03:06.4]} 10... Qe7 {[%clk 0:03:02]} 11. b3 {[%clk 0:03:03.2]}
11... Kh8 {[%clk 0:03:01.5]} 12. Ba3 {[%clk 0:03:03.8]} 12... Qe8 {[%clk
0:02:57.4]} 13. Bxf8 {[%clk 0:03:04.9]} 13... Bxf8 {[%clk 0:02:56.2]} 14. Nbd2
{[%clk 0:03:05.3]} 14... Nh5 {[%clk 0:02:53.6]} 15. Nf1 {[%clk 0:03:02.8]} 15...
Nf4 {[%clk 0:02:44.6]} 16. Ne3 {[%clk 0:02:46.2]} 16... a6 {[%clk 0:02:35.4]}
17. Rad1 {[%clk 0:02:43.9]} 17... Bd7 {[%clk 0:02:27.9]} 18. Nd5 {[%clk
0:02:32.1]} 1-0

[Event "*** Titled Tuesday Blitz"]
[Site "Chess.com"]
[Date "2019.06.04"]
[Round "9"]
[White "vohiraa"]
[Black "fish7728"]
[Result "1-0"]
[WhiteElo "2304"]
[BlackElo "2231"]
[TimeControl "180+2"]
[EndTime "15:01:25 PDT"]
[Termination "vohiraa won by resignation"]

1. e4 {[%clk 0:03:01.9]} 1... c5 {[%clk 0:02:59.2]} 2. Nf3 {[%clk 0:03:03]} 2...
Nc6 {[%clk 0:02:59.8]} 3. d4 {[%clk 0:03:04.2]} 3... cxd4 {[%clk 0:03:00.8]} 4.
Nxd4 {[%clk 0:03:06.1]} 4... Nf6 {[%clk 0:03:02]} 5. Nc3 {[%clk 0:03:07.2]} 5...
e5 {[%clk 0:03:02.1]} 6. Ndb5 {[%clk 0:03:08.7]} 6... d6 {[%clk 0:03:02.9]} 7.
Bg5 {[%clk 0:03:05.9]} 7... a6 {[%clk 0:03:03]} 8. Na3 {[%clk 0:03:06.2]} 8...
b5 {[%clk 0:03:03.8]} 9. Bxf6 {[%clk 0:03:06.9]} 9... gxf6 {[%clk 0:02:52.3]}
10. Nd5 {[%clk 0:03:07.9]} 10... f5 {[%clk 0:02:50.9]} 11. Bd3 {[%clk
0:03:08.8]} 11... Be6 {[%clk 0:02:51.3]} 12. O-O {[%clk 0:03:07.4]} 12... Bxd5
{[%clk 0:02:49.5]} 13. exd5 {[%clk 0:03:08.7]} 13... Ne7 {[%clk 0:02:50.2]} 14.
c3 {[%clk 0:03:04.6]} 14... Bg7 {[%clk 0:02:41]} 15. Nc2 {[%clk 0:03:04.2]}
15... O-O {[%clk 0:02:39]} 16. Ne3 {[%clk 0:03:03.8]} 16... Qd7 {[%clk
0:02:29.4]} 17. Nxf5 {[%clk 0:03:00.5]} 17... Nxd5 {[%clk 0:02:13.6]} 18. Qg4
{[%clk 0:02:48.8]} 18... f6 {[%clk 0:02:07.8]} 19. Nh6+ {[%clk 0:02:49.9]} 19...
Kh8 {[%clk 0:02:07.7]} 20. Qxd7 {[%clk 0:02:51.8]} 1-0

[Event "*** Titled Tuesday Blitz"]
[Site "Chess.com"]
[Date "2019.06.04"]
[Round "9"]
[White "XiaoKangZhong"]
[Black "Rhinos1"]
[Result "0-1"]
[WhiteElo "2270"]
[BlackElo "2067"]
[TimeControl "180+2"]
[EndTime "15:01:38 PDT"]
[Termination "Rhinos1 won by resignation"]

1. e4 {[%clk 0:03:01.9]} 1... e5 {[%clk 0:03:00.9]} 2. Nf3 {[%clk 0:03:02.3]}
2... Nc6 {[%clk 0:03:01.4]} 3. Bc4 {[%clk 0:03:02.5]} 3... Nf6 {[%clk
0:03:01.9]} 4. d3 {[%clk 0:03:02.7]} 4... Bc5 {[%clk 0:02:57.5]} 5. c3 {[%clk
0:03:02.5]} 5... O-O {[%clk 0:02:57.4]} 6. O-O {[%clk 0:02:59.7]} 6... h6 {[%clk
0:02:57.7]} 7. b4 {[%clk 0:02:58.5]} 7... Bb6 {[%clk 0:02:57.5]} 8. a4 {[%clk
0:02:59.2]} 8... a5 {[%clk 0:02:57.3]} 9. b5 {[%clk 0:03:00.2]} 9... Ne7 {[%clk
0:02:51.6]} 10. Ba3 {[%clk 0:02:59.8]} 10... d6 {[%clk 0:02:51.6]} 11. Nh4
{[%clk 0:02:57.9]} 11... Bg4 {[%clk 0:02:47.8]} 12. Qd2 {[%clk 0:02:52.1]} 12...
Ng6 {[%clk 0:02:42.4]} 13. Nxg6 {[%clk 0:02:52.4]} 13... Nh5 {[%clk 0:02:31.6]}
14. Nxf8 {[%clk 0:02:51.1]} 14... Kxf8 {[%clk 0:02:33.5]} 15. h3 {[%clk
0:02:49.1]} 15... Bxh3 {[%clk 0:02:29.1]} 16. gxh3 {[%clk 0:02:20.4]} 16... Nf4
{[%clk 0:02:29.4]} 17. d4 {[%clk 0:01:51.8]} 17... Qg5+ {[%clk 0:02:27.8]} 0-1

[Event "*** Titled Tuesday Blitz"]
[Site "Chess.com"]
[Date "2019.06.04"]
[Round "9"]
[White "fm_magua"]
[Black "VerdeNotte"]
[Result "0-1"]
[WhiteElo "2486"]
[BlackElo "2787"]
[TimeControl "180+2"]
[EndTime "15:02:15 PDT"]
[Termination "VerdeNotte won by resignation"]

1. e4 {[%clk 0:03:01.9]} 1... g6 {[%clk 0:02:57.6]} 2. d4 {[%clk 0:03:01]} 2...
Bg7 {[%clk 0:02:59.1]} 3. Nc3 {[%clk 0:02:58.6]} 3... d6 {[%clk 0:02:58]} 4. Be3
{[%clk 0:03:00]} 4... Nf6 {[%clk 0:02:58.8]} 5. f3 {[%clk 0:03:01.3]} 5... a6
{[%clk 0:02:59.6]} 6. h4 {[%clk 0:03:02]} 6... b5 {[%clk 0:02:58]} 7. a4 {[%clk
0:03:02.3]} 7... b4 {[%clk 0:02:56.7]} 8. Nce2 {[%clk 0:03:03.5]} 8... Nbd7
{[%clk 0:02:56.8]} 9. Ng3 {[%clk 0:03:04.5]} 9... c5 {[%clk 0:02:56.1]} 10. Bc4
{[%clk 0:03:04]} 10... Nb6 {[%clk 0:02:51.4]} 11. Ba2 {[%clk 0:03:03.4]} 11...
c4 {[%clk 0:02:52.3]} 12. d5 {[%clk 0:03:04]} 12... a5 {[%clk 0:02:51.9]} 13.
Bxb6 {[%clk 0:03:01.4]} 13... Qxb6 {[%clk 0:02:52.4]} 14. Bxc4 {[%clk 0:03:03]}
14... Nd7 {[%clk 0:02:40.5]} 15. N1e2 {[%clk 0:02:53.6]} 15... Bxb2 {[%clk
0:02:39.6]} 16. Rb1 {[%clk 0:02:54.2]} 16... Bg7 {[%clk 0:02:33.3]} 17. h5
{[%clk 0:02:54.8]} 17... Ba6 {[%clk 0:02:32.6]} 18. Bxa6 {[%clk 0:02:45.9]}
18... Rxa6 {[%clk 0:02:31.9]} 19. hxg6 {[%clk 0:02:43.5]} 19... hxg6 {[%clk
0:02:31.7]} 20. Rxh8+ {[%clk 0:02:43.7]} 20... Bxh8 {[%clk 0:02:33.6]} 21. Qd3
{[%clk 0:02:32.8]} 21... Nc5 {[%clk 0:02:32.5]} 22. Qb5+ {[%clk 0:02:20.8]}
22... Qxb5 {[%clk 0:02:33.3]} 23. axb5 {[%clk 0:02:22.7]} 23... Rb6 {[%clk
0:02:32.7]} 24. Kd2 {[%clk 0:02:18.3]} 24... Rxb5 {[%clk 0:02:31]} 25. Rh1
{[%clk 0:02:15.3]} 25... Bf6 {[%clk 0:02:25.9]} 26. f4 {[%clk 0:02:11.1]} 26...
a4 {[%clk 0:02:22.6]} 27. c4 {[%clk 0:01:59.6]} 27... bxc3+ {[%clk 0:02:21]} 0-1

[Event "*** Titled Tuesday Blitz"]
[Site "Chess.com"]
[Date "2019.06.04"]
[Round "9"]
[White "Bad4life"]
[Black "Jahonas"]
[Result "0-1"]
[WhiteElo "2430"]
[BlackElo "2350"]
[TimeControl "180+2"]
[EndTime "15:02:32 PDT"]
[Termination "Jahonas won by resignation"]

1. e4 {[%clk 0:03:00.8]} 1... c6 {[%clk 0:03:00.5]} 2. Nc3 {[%clk 0:02:59.2]}
2... d5 {[%clk 0:03:01.6]} 3. Qe2 {[%clk 0:03:00.7]} 3... dxe4 {[%clk
0:03:00.4]} 4. Nxe4 {[%clk 0:03:01.7]} 4... Nf6 {[%clk 0:03:00.4]} 5. Nxf6+
{[%clk 0:03:02.9]} 5... gxf6 {[%clk 0:03:01.3]} 6. d3 {[%clk 0:03:04.8]} 6... e5
{[%clk 0:03:00.6]} 7. Bd2 {[%clk 0:03:04.5]} 7... Be6 {[%clk 0:03:01.6]} 8. f4
{[%clk 0:03:05.2]} 8... Nd7 {[%clk 0:03:02.4]} 9. Nf3 {[%clk 0:03:06.2]} 9...
Qc7 {[%clk 0:03:01.4]} 10. Bc3 {[%clk 0:03:07]} 10... Bd6 {[%clk 0:03:01.8]} 11.
d4 {[%clk 0:03:08.5]} 11... O-O-O {[%clk 0:02:58.4]} 12. fxe5 {[%clk 0:03:04.8]}
12... fxe5 {[%clk 0:02:59.4]} 13. dxe5 {[%clk 0:03:06.3]} 13... Bc5 {[%clk
0:02:54]} 14. g3 {[%clk 0:02:53]} 14... Bg4 {[%clk 0:02:48.6]} 15. e6 {[%clk
0:02:46.7]} 15... Rhe8 {[%clk 0:02:45.3]} 16. exd7+ {[%clk 0:02:39.9]} 16...
Qxd7 {[%clk 0:02:40.8]} 17. Ne5 {[%clk 0:02:37.4]} 17... Rxe5 {[%clk 0:02:36]}
18. Bxe5 {[%clk 0:02:26.1]} 18... Bxe2 {[%clk 0:02:32.1]} 19. Bxe2 {[%clk
0:02:27.2]} 19... Qd2+ {[%clk 0:02:18]} 20. Kf1 {[%clk 0:02:28.1]} 20... f5
{[%clk 0:01:59.8]} 21. Bf4 {[%clk 0:02:18.8]} 21... Qd4 {[%clk 0:01:53.3]} 22.
Kg2 {[%clk 0:01:50.5]} 22... Qf2+ {[%clk 0:01:52.4]} 23. Kh3 {[%clk 0:01:51.6]}
23... Qxe2 {[%clk 0:01:52.7]} 0-1

[Event "*** Titled Tuesday Blitz"]
[Site "Chess.com"]
[Date "2019.06.04"]
[Round "9"]
[White "Rumpel-VK"]
[Black "pultineviciuspaulius"]
[Result "1-0"]
[WhiteElo "2614"]
[BlackElo "2714"]
[TimeControl "180+2"]
[EndTime "15:02:46 PDT"]
[Termination "Rumpel-VK won by resignation"]

1. d4 {[%clk 0:03:01.9]} 1... g6 {[%clk 0:03:00]} 2. g3 {[%clk 0:03:01.8]} 2...
Nf6 {[%clk 0:03:00.9]} 3. Nf3 {[%clk 0:03:02.2]} 3... Bg7 {[%clk 0:03:02.1]} 4.
Bg2 {[%clk 0:03:03.6]} 4... O-O {[%clk 0:03:03.6]} 5. O-O {[%clk 0:03:04.8]}
5... d5 {[%clk 0:03:05.5]} 6. c3 {[%clk 0:03:04.9]} 6... b6 {[%clk 0:03:04.8]}
7. c4 {[%clk 0:03:05.6]} 7... Bb7 {[%clk 0:03:02.8]} 8. Ne5 {[%clk 0:02:53.6]}
8... e6 {[%clk 0:03:00.8]} 9. Nc3 {[%clk 0:02:54]} 9... Qe7 {[%clk 0:02:59]} 10.
Bg5 {[%clk 0:02:49.5]} 10... Rd8 {[%clk 0:02:59.5]} 11. Qd2 {[%clk 0:02:43.8]}
11... c5 {[%clk 0:02:58.6]} 12. cxd5 {[%clk 0:02:37.4]} 12... exd5 {[%clk
0:02:49.2]} 13. Rad1 {[%clk 0:02:29.6]} 13... Nc6 {[%clk 0:02:47.6]} 14. Nxd5
{[%clk 0:02:19.9]} 14... Rxd5 {[%clk 0:02:33]} 15. Bxd5 {[%clk 0:02:20.5]} 15...
Nxd4 {[%clk 0:02:34.9]} 16. Bxb7 {[%clk 0:01:28.7]} 16... Qxb7 {[%clk
0:02:36.8]} 17. Bxf6 {[%clk 0:01:29.3]} 17... Bxf6 {[%clk 0:02:36.5]} 18. Nf3
{[%clk 0:01:29.8]} 18... Nxf3+ {[%clk 0:02:03.1]} 19. exf3 {[%clk 0:01:30.7]}
19... Qxf3 {[%clk 0:02:05]} 20. b3 {[%clk 0:01:31.6]} 20... Rd8 {[%clk
0:02:04.3]} 21. Qe3 {[%clk 0:01:26.3]} 21... Qd5 {[%clk 0:01:58.5]} 22. Rxd5
{[%clk 0:01:25.9]} 1-0

[Event "*** Titled Tuesday Blitz"]
[Site "Chess.com"]
[Date "2019.06.04"]
[Round "9"]
[White "Saitama_Hero"]
[Black "riconaipe"]
[Result "1-0"]
[WhiteElo "2456"]
[BlackElo "2565"]
[TimeControl "180+2"]
[EndTime "15:03:15 PDT"]
[Termination "Saitama_Hero won by resignation"]

1. d4 {[%clk 0:03:01.9]} 1... d5 {[%clk 0:03:00.7]} 2. c4 {[%clk 0:03:00.3]}
2... e6 {[%clk 0:03:01.7]} 3. Nf3 {[%clk 0:02:58.6]} 3... c6 {[%clk 0:03:01.6]}
4. Nc3 {[%clk 0:02:59.6]} 4... dxc4 {[%clk 0:02:58.3]} 5. a4 {[%clk 0:02:59.9]}
5... Nf6 {[%clk 0:02:55.1]} 6. e3 {[%clk 0:03:01]} 6... c5 {[%clk 0:02:56]} 7.
Bxc4 {[%clk 0:03:01.2]} 7... Nc6 {[%clk 0:02:57.6]} 8. O-O {[%clk 0:02:59.9]}
8... cxd4 {[%clk 0:02:57.3]} 9. exd4 {[%clk 0:03:01.8]} 9... Be7 {[%clk
0:02:57.8]} 10. Qe2 {[%clk 0:03:01.9]} 10... O-O {[%clk 0:02:58.3]} 11. Rd1
{[%clk 0:03:03]} 11... Nb4 {[%clk 0:02:59.8]} 12. Ne5 {[%clk 0:03:01.7]} 12...
Nbd5 {[%clk 0:02:56]} 13. Qf3 {[%clk 0:02:56]} 13... Nxc3 {[%clk 0:02:53.2]} 14.
bxc3 {[%clk 0:02:55.9]} 14... Nd5 {[%clk 0:02:54.6]} 15. Bb2 {[%clk 0:02:19.7]}
15... Bf6 {[%clk 0:02:40.4]} 16. Re1 {[%clk 0:02:07.6]} 16... b6 {[%clk
0:02:40.7]} 17. Bd3 {[%clk 0:02:03.6]} 17... Bd7 {[%clk 0:02:16.9]} 18. c4
{[%clk 0:01:55.2]} 18... Nb4 {[%clk 0:02:15.4]} 19. Be4 {[%clk 0:01:55.3]} 19...
Rc8 {[%clk 0:02:12.8]} 20. Ra3 {[%clk 0:01:28.7]} 20... g6 {[%clk 0:01:44.7]}
21. Nxd7 {[%clk 0:01:27.8]} 21... Qxd7 {[%clk 0:01:40.7]} 22. Qxf6 {[%clk
0:01:29.3]} 22... Rxc4 {[%clk 0:01:40.3]} 23. d5 {[%clk 0:01:26.5]} 1-0

[Event "*** Titled Tuesday Blitz"]
[Site "Chess.com"]
[Date "2019.06.04"]
[Round "9"]
[White "MathiasWomacka"]
[Black "Mikhail_Golubev"]
[Result "0-1"]
[WhiteElo "2292"]
[BlackElo "2490"]
[TimeControl "180+2"]
[EndTime "15:04:17 PDT"]
[Termination "Mikhail_Golubev won by resignation"]

1. e4 {[%clk 0:03:01.9]} 1... c5 {[%clk 0:03:00.1]} 2. Nf3 {[%clk 0:03:02.2]}
2... d6 {[%clk 0:03:00.6]} 3. d4 {[%clk 0:03:03.3]} 3... cxd4 {[%clk 0:03:01.3]}
4. Nxd4 {[%clk 0:03:04.9]} 4... Nf6 {[%clk 0:03:01.8]} 5. Nc3 {[%clk 0:03:06.3]}
5... g6 {[%clk 0:02:58]} 6. Be3 {[%clk 0:03:05.6]} 6... Bg7 {[%clk 0:02:58.6]}
7. f3 {[%clk 0:03:07]} 7... Nc6 {[%clk 0:02:59.2]} 8. Qd2 {[%clk 0:03:07.8]}
8... O-O {[%clk 0:02:59.5]} 9. O-O-O {[%clk 0:03:07.8]} 9... d5 {[%clk 0:02:59]}
10. exd5 {[%clk 0:03:08.7]} 10... Nxd5 {[%clk 0:02:59.7]} 11. Nxc6 {[%clk
0:03:10]} 11... bxc6 {[%clk 0:03:00.3]} 12. Bd4 {[%clk 0:03:11.5]} 12... e5
{[%clk 0:02:59.6]} 13. Bc5 {[%clk 0:03:12.4]} 13... Be6 {[%clk 0:02:58.4]} 14.
Ne4 {[%clk 0:03:03.8]} 14... Rb8 {[%clk 0:02:58.3]} 15. g4 {[%clk 0:02:56.1]}
15... f5 {[%clk 0:02:56]} 16. gxf5 {[%clk 0:02:54]} 16... gxf5 {[%clk
0:02:55.6]} 17. Ng5 {[%clk 0:02:53.9]} 17... e4 {[%clk 0:02:54.1]} 18. c3 {[%clk
0:02:14.1]} 18... Qa5 {[%clk 0:02:32.2]} 19. Nxe6 {[%clk 0:01:21.3]} 19... Qxa2
{[%clk 0:02:31.1]} 20. Ba3 {[%clk 0:01:21.7]} 20... Nxc3 {[%clk 0:02:24.9]} 21.
Bd3 {[%clk 0:00:37.8]} 21... exd3 {[%clk 0:02:06.2]} 22. Qxd3 {[%clk 0:00:38.7]}
22... Qxe6 {[%clk 0:01:52.5]} 23. bxc3 {[%clk 0:00:30.4]} 23... Qa2 {[%clk
0:01:46.9]} 0-1